[Event "4NCL Div 1 2024-25"]
[Site "England"]
[Date "2025.01.25"]
[Round "3.2"]
[White "Speelman, Jon S"]
[Black "Olson, Hamish"]
[Result "1-0"]
[Annotator "TA"]
[ECO "A07"]
[WhiteElo "2499"]
[BlackElo "2374"]
[PlyCount "111"]
[EventDate "2024.11.23"]
[EventType "team-tourn"]
[EventCountry "ENG"]
[SourceTitle "playchess.com"]
[Source "ChessBase"]
[SourceQuality "1"]
[TimeControl "40/6000+30:3000+30"]

{[%evp 9,111,-10,0,0,0,0,0,5,31,-11,0,0,0,0,0,-13,0,-59,-29,-66,-27,-47,-25,-66,-80,-268,-275,-324,-314,-320,-308,-417,-393,-856,-198,-181,-71,-204,-172,-140,0,0,0,0,0,0,0,0,33,13,17,21,17,0,23,6,7,7,96,107,142,127,174,162,157,99,231,219,211,206,245,242,251,220,231,220,185,181,191,190,583,568,610,606,914,1013,797,1049,1037,964,809,677,625,837,894,787,1629,1501,29975,29977,29977,29978,29976,29977]} 1. Nf3 {[%emt 0:10:26]} d5 {[%emt 0:10:10]} 2. g3 {[%emt 0:00:07]} Nc6 {[%emt 0:00:32]} 3. Bg2 {[%emt 0:01:57]} e5 {[%emt 0:00:32]} 4. d3 {[%emt 0:00:04]} f6 {[%emt 0:02:14]} 5. c3 {[%emt 0:04:26]} a5 {[%emt 0:03:04]} 6. O-O {[%emt 0:02:43] A07: Réti Opening: New York and Capablanca Systems.} Be6 {[%emt 0:02:40]} 7. Nbd2 {[%emt 0:01:51]} Qd7 {[%emt 0:03:40]} 8. Qa4 {[%emt 0:00:52] The position is equal.} h5 $146 {[%emt 0:03:12]} (8... Nh6 9. b4 b5 10. Qxb5 axb4 11. Nb3 Nf5 12. cxb4 Rb8 13. Qa4 Rxb4 14. Qa3 Rb8 {½-½ Potpara,N (2370)-Basso,P (2552) Niksic Kontic Memorial 2021 (5)}) 9. h4 {[%emt 0:05:41]} Bh3 {[%emt 0:10:46]} 10. Bxh3 {[%emt 0:02:29]} Qxh3 {[%emt 0:00:05]} 11. e4 {[%emt 0:00:11]} O-O-O {[%emt 0:03:19]} 12. Qb5 {[%emt 0:03:53] Dodges Bc5} dxe4 {[%emt 0:07:49]} (12... Qe6 13. Nb3 dxe4 14. dxe4 Qg4) 13. dxe4 {[%emt 0:00:07] A sharp opening} ({White should play} 13. Nxe4 $11 Kb8 14. Re1) 13... Nh6 $15 {[%emt 0:03:15]} 14. Re1 {[%emt 0:02:39]} Ng4 {[%emt 0:03:37][%cal Od8d3]} 15. Nf1 {[%emt 0:09:26]} Bd6 $1 {[%emt 0:16:10][%cal Og7g5]} 16. a3 {[%emt 0:02:04]} g5 $1 $40 {[%emt 0:04:14][%mdl 128] Black is out for blood.} 17. Bxg5 {[%emt 0:01:17]} Nxf2 $1 $19 {[%emt 0:01:25]} (17... fxg5 $2 18. Nxg5 Nxf2 (18... Na7 $2 19. Qxa5 Nc6 20. Qa8+ Kd7 21. Qxb7 $18) 19. Nxh3 $18) 18. Bxf6 {[%emt 0:08:36]} Rhf8 {[%emt 0:01:33]} 19. Kxf2 {[%emt 0:00:17]} Rxf6 {[%emt 0:00:15]} 20. b4 {[%emt 0:00:09]} Rdf8 {[%emt 0:03:34]} 21. Re3 {[%emt 0:00:07]} (21. N1d2 Qh2+ 22. Ke3 Qxg3 23. Rf1) 21... Qh1 $2 {[%emt 0:02:16]} (21... Nd4 {[%cal Rf6f3]} 22. cxd4 exd4) 22. Qe2 {[%emt 0:02:48]} Kb8 {[%emt 0:00:50]} (22... Ne7 $19 {is more deadly. Hoping for ...Ng8.} 23. Rb1 Ng6) 23. Rd1 {[%emt 0:00:45]} (23. Rb1 $17) 23... Ne7 {[%emt 0:02:07]} 24. Rdd3 {[%emt 0:02:03]} Nc8 {[%emt 0:02:05]} ({Black should try} 24... c5 $17 {[%cal Rc5b4]} 25. Ke1 cxb4 26. axb4 axb4) 25. Ke1 $11 {[%emt 0:01:40]} Nb6 {[%emt 0:08:16][%cal Bc8b6,Bb6c4,Bc4a3][%mdl 32]} 26. Qh2 {[%emt 0:01:52] Dancing on a razor blade.} Qxh2 {[%emt 0:00:10]} 27. N1xh2 {[%emt 0:02:41]} Nc4 {[%emt 0:00:27][%csl LRa3,LRe3]} 28. Re2 {[%emt 0:00:05]} Nxa3 {[%emt 0:05:01]} 29. bxa5 {[%emt 0:00:50]} Nc4 {[%emt 0:00:25]} 30. Ng5 {[%emt 0:00:59]} Rg8 {[%emt 0:01:27]} (30... Nxa5 $2 31. Nh7 $18) 31. Ra2 {[%emt 0:04:59]} Ka7 {[%emt 0:02:46]} 32. Nhf3 {[%emt 0:01:31]} (32. Rf2 {simplifies} Rxf2 33. Kxf2 Ka6 34. Kg2) 32... Ka6 {[%emt 0:00:50]} 33. Ke2 {[%emt 0:01:25]} Bc5 {[%emt 0:05:03]} (33... Rh8 $11) 34. Rd7 $16 {[%emt 0:05:28]} Bd6 {[%emt 0:01:01]} 35. Rh7 {[%emt 0:00:59] Inhibits Rh8.} Nxa5 {[%emt 0:00:36]} (35... Na3 $16 36. Rxh5 Nb5) 36. Rxh5 $18 {[%emt 0:00:32]} b5 {[%emt 0:00:48]} 37. Rh7 {[%emt 0:01:11] White is more active.} (37. Nh7 $142 Re6 38. Kf2) 37... c5 {[%emt 0:00:27]} (37... Rgf8 $16 38. Rg7 Kb6) 38. Rf7 {[%emt 0:02:03]} Rxf7 {[%emt 0:00:37]} 39. Nxf7 {[%emt 0:00:07]} Rxg3 {[%emt 0:00:51]} 40. Kf2 {[%emt 0:03:17] Repels Rg2+} (40. Nxd6 Rg2+ 41. Ke3 Rxa2 $17) (40. Rxa5+ $6 Kxa5 41. Nxd6 b4 $16) 40... Rg6 {[%emt 0:00:27]} 41. h5 $1 {[%emt 0:52:31]} (41. N7xe5 $6 Re6 $18) (41. N3xe5 Rf6+ 42. Ke3 Bf8 $16) 41... Rf6 {[%emt 0:51:45]} 42. Nxd6 {[%emt 0:00:05]} Rxd6 {[%emt 0:00:37]} 43. Nxe5 {[%emt 0:00:05][%mdl 4096] Endgame KRN-KRN. White is a pawn up.} Rh6 {[%emt 0:00:00] [#]} 44. Kg3 $1 {[%emt 0:00:00] And now Kg4 would win.} Rxh5 $2 {[%emt 0:00:00]} (44... b4 {is more resistant.}) 45. Nc6 {[%emt 0:00:00]} Kb6 {[%emt 0:00:00]} 46. Nxa5 {[%emt 0:00:00] KRN-KR} (46. Rxa5 Kxc6 47. Ra6+ Kc7 $11) 46... c4 {[%emt 0:00:00]} 47. Kg4 {[%emt 0:00:00]} Rh1 {[%emt 0:00:00]} 48. e5 {[%emt 0:00:00]} Re1 {[%emt 0:00:00]} 49. Kf4 {[%emt 0:00:00]} Rf1+ {[%emt 0:00:00]} 50. Ke3 {[%emt 0:00:00]} Rh1 {[%emt 0:00:00] [#]} 51. Nxc4+ $1 {[%emt 0:00:00]} bxc4 {[%emt 0:00:00] [#]} 52. Kd4 $1 {[%emt 0:00:00]} Kc6 {[%emt 0:00:00]} 53. Re2 {[%emt 0:00:00]} ({Less strong is} 53. Kxc4 Rh4+ 54. Kd3 Kd5 $16) 53... Kb5 {[%emt 0:00:00]} 54. e6 {[%emt 0:00:00] White mates.} Rd1+ {[%emt 0:00:00]} 55. Ke5 {[%emt 0:00:00]} Kc6 {[%emt 0:00:00]} 56. Re4 {[%emt 0:00:00] Never resign too early!   Weighted Error Value: White=0.36/Black=0.59  Loses game:     	White=1     	---        Mistake:       	White=4     	Black=6      Inaccurate:     	White=4     	Black=4      OK:         	White=14    	Black=18     Best:        	White=5     	---        Strong:       	White=2     	Black=3} 1-0

[Event "4NCL Div 1 2024-25"]
[Site "England"]
[Date "2025.01.25"]
[Round "3.3"]
[White "Gourlay, Iain"]
[Black "Tan, Justin"]
[Result "0-1"]
[Annotator "TA"]
[ECO "A13"]
[WhiteElo "2303"]
[BlackElo "2507"]
[PlyCount "68"]
[EventDate "2024.11.23"]
[EventType "team-tourn"]
[EventCountry "ENG"]
[SourceTitle "playchess.com"]
[Source "ChessBase"]
[SourceQuality "1"]
[TimeControl "40/6000+30:3000+30"]

{[%evp 14,68,8,0,32,0,0,-20,0,-28,-29,-21,-11,-22,-37,-36,-8,-34,0,0,0,20,40,-79,-84,-71,-70,-127,-99,-183,-190,-203,-147,-168,-164,-160,-119,-197,-162,-210,-180,-194,-163,-418,-421,-434,-396,-456,-427,-381,-301,-457,-394,-985,-965,-889,-870]} 1. c4 {[%emt 0:10:34]} e6 {[%emt 0:10:18]} 2. g3 {[%emt 0:00:10]} d5 {[%emt 1:31:12]} 3. Bg2 {[%emt 1:31:16]} Nf6 {[%emt 0:00:00]} 4. Nf3 {[%emt 0:00:00]} d4 {[%emt 0:00:00]} 5. O-O {[%emt 0:00:00]} c5 {[%emt 0:00:00]} 6. e3 {[%emt 0:00:00]} Nc6 {[%emt 0:00:00]} 7. exd4 {[%emt 0:00:00]} cxd4 {[%emt 0:00:00]} 8. d3 {[%emt 0:00:00]} h6 {[%emt 0:00:00] A13: English Opening: 1...e6.} 9. Re1 {[%emt 0:00:00]} (9. Bf4 $14) 9... Bd6 $11 {[%emt 0:00:00]} 10. Na3 {[%emt 0:00:00]} O-O $1 {[%emt 0:00:00] The position is equal.} 11. Nc2 {[%emt 0:00:00][%cal Oc1d2]} a5 $1 {[%emt 0:00:00]} 12. a3 {[%emt 0:00:00]} e5 {[%emt 0:00:00]} 13. Rb1 {[%emt 0:00:00]} a4 {[%emt 0:00:00]} 14. Nb4 {[%emt 0:00:00]} Nd7 $146 {[%emt 0:00:00]} (14... Re8 15. Bd2 Bf5 16. h3 Bxb4 17. Bxb4 e4 18. dxe4 Bxe4 19. Rc1 Qd7 20. Qd2 Bxf3 21. Bxf3 Qxh3 {1-0 Carlsen,M (2859)-Keymer,V (2698) Titled Tuesday intern op 29th Nov Late blitz 2022 (10)}) 15. c5 {[%emt 0:00:00]} Bc7 {[%emt 0:00:00]} (15... Bxc5 $15 16. Nxc6 bxc6) 16. Bd2 {[%emt 0:00:00]} Re8 {[%emt 0:00:00]} (16... Nxc5 $6 17. Nxc6 bxc6 18. Bb4 $16) 17. Nh4 {[%emt 0:00:00]} Na5 {[%emt 0:00:00]} 18. Qc2 {[%emt 0:00:00]} (18. c6 $14 {stays ahead.}) 18... Nb3 $17 {[%emt 0:00:00]} 19. c6 {[%emt 0:00:00][%cal Oc6b7] [#] cxb7! would now be deadly.} Ndc5 $36 {[%emt 0:00:00][%csl Ob3][%mdl 2048] Strong Square Black (b3) Black is pushing.} 20. Nd5 {[%emt 0:00:00]} (20. Rbd1 $15) 20... Bd6 {[%emt 0:00:00]} (20... bxc6 21. Nxc7 Qxc7 22. Bb4 $15) 21. Bb4 {[%emt 0:03:25]} (21. f4 $17) 21... bxc6 $19 {[%emt 0:00:00]} 22. Bxc5 {[%emt 0:00:09]} cxd5 {[%emt 0:00:00]} (22... Nxc5 23. Nb4 $17) 23. Bxd6 {[%emt 0:02:37]} Qxd6 {[%emt 0:00:00]} 24. f4 {[%emt 0:00:15]} f6 {[%emt 0:00:00]} 25. Qf2 {[%emt 0:01:42]} (25. Bf3 $17 {was worth a try.}) 25... Be6 {[%emt 0:00:00]} 26. fxe5 {[%emt 0:01:25]} (26. g4 $142) 26... fxe5 {[%emt 0:00:00]} 27. Qe2 {[%emt 0:00:46]} Bd7 {[%emt 0:00:00]} 28. Qf3 $2 {[%emt 0:00:10] [#]} (28. Qh5) 28... e4 $1 {[%emt 0:00:00][%mdl 512]} 29. dxe4 {[%emt 0:01:21]} (29. Qh5 Nc5) 29... Nd2 $1 {[%emt 0:00:00][%csl LRb1,LRe4,LRf3]} 30. Qd1 {[%emt 0:00:48]} Nxb1 {[%emt 0:00:00]} 31. Qxd4 {[%emt 0:00:20][%cal Oe4e5]} Qe5 {[%emt 0:01:41]} 32. Qf2 {[%emt 0:00:26]} (32. Qxe5 {was forced.} Rxe5 33. Rxb1 dxe4 34. Ng6) 32... Rf8 {[%emt 0:01:32]} 33. Qc2 {[%emt 0:01:00]} (33. Nf3 Qh5 34. Qe3) 33... Qd4+ {[%emt 0:00:06]} 34. Kh1 {[%emt 0:00:06]} Nd2 {[%emt 0:00:11] Weighted Error Value: White=0.69/Black=0.20 (precise)   Mistake:       	White=9     	Black=1      Inaccurate:     	White=2     	Black=1      OK:         	White=7     	Black=8      Best:        	White=3     	Black=3      Strong:       	---       	Black=2      Brilliant:      	---       	Black=1} 0-1

[Event "4NCL Div 1 2024-25"]
[Site "England"]
[Date "2025.01.25"]
[Round "3.5"]
[White "Berry, Neil"]
[Black "Wadsworth, Matthew J"]
[Result "0-1"]
[Annotator "TA"]
[ECO "D17"]
[WhiteElo "2248"]
[BlackElo "2461"]
[PlyCount "120"]
[EventDate "2024.11.23"]
[EventType "team-tourn"]
[EventCountry "ENG"]
[SourceTitle "playchess.com"]
[Source "ChessBase"]
[SourceQuality "1"]
[TimeControl "40/6000+30:3000+30"]

{[%evp 15,120,4,4,-7,34,35,30,32,29,34,35,28,34,0,41,54,52,40,65,63,63,59,74,83,83,24,22,0,0,0,7,-25,-13,-40,0,-17,0,0,0,0,0,-27,-22,-33,17,25,112,108,110,35,0,0,0,0,11,0,11,0,0,0,0,0,0,-29,0,-62,-56,-71,-67,-62,-62,-61,-34,-56,-45,-56,-31,-36,-35,-33,-39,-64,-36,-138,-25,-50,-10,-157,-19,-28,0,-27,0,-107,-28,-14,-15,-460,-466,-406,-414,-539,-516,-406,-375,-480,-467]} 1. d4 {[%emt 0:10:27]} d5 {[%emt 0:10:06]} 2. c4 {[%emt 0:00:18]} c6 {[%emt 0:00:06]} 3. Nf3 {[%emt 0:00:47]} Nf6 {[%emt 0:00:06]} 4. Nc3 {[%emt 0:02:14]} dxc4 {[%emt 0:01:19]} 5. a4 {[%emt 0:00:11]} Bf5 {[%emt 0:00:07]} 6. Ne5 {[%emt 0:01:01]} e6 {[%emt 0:00:08]} 7. f3 {[%emt 0:04:04]} Bb4 {[%emt 0:00:49]} 8. Nxc4 {[%emt 0:02:03] is more profitable than 8.e4 at the moment.} O-O {[%emt 0:00:18]} 9. Kf2 {[%emt 0:01:50] D17: Slav Defence: 5 a4 Bf5: Lines with 6 Nh4 and 6 Ne5.} h6 {[%emt 0:00:10]} 10. e4 {[%emt 0:03:53]} Bh7 {[%emt 0:00:07]} 11. Be3 {[%emt 0:03:01] White has an edge.} a5 {[%emt 0:02:09]} 12. Be2 {[%emt 0:04:18]} Nfd7 {[%emt 0:02:52]} 13. Na2 $146 {[%emt 0:06:31]} (13. Qb3 Na6 14. Na2 f5 15. Nxb4 Nxb4 16. Nd6 Qe7 17. Nxf5 Bxf5 18. exf5 Rxf5 19. Rhe1 {1-0 Assaubayeva,B (2472)-Mammadzada,G (2449) Wch Blitz (Women) 2023 (13)}) 13... Be7 {[%emt 0:09:10]} 14. Qb3 {[%emt 0:02:15]} Qc7 {[%emt 0:08:29]} 15. Rac1 {[%emt 0:08:24]} Na6 {[%emt 0:02:25]} 16. g3 {[%emt 0:17:20]} Nb4 {[%emt 0:03:05]} 17. Nxb4 {[%emt 0:02:27]} Bxb4 {[%emt 0:01:01]} 18. Rhd1 {[%emt 0:02:23]} Kh8 {[%emt 0:10:26]} 19. Bf4 {[%emt 0:02:46]} Qd8 {[%emt 0:00:08]} 20. Bd6 {[%emt 0:01:56]} (20. Bd2 $16) 20... b5 $11 {[%emt 0:01:01]} 21. Bxf8 {[%emt 0:05:18]} (21. axb5 $5 cxb5 22. Bxf8 bxc4 23. Bxg7+ Kxg7 24. Qxc4 $11) 21... bxc4 {[%emt 0:00:09]} 22. Bxg7+ {[%emt 0:01:06]} Kxg7 {[%emt 0:00:08]} 23. Bxc4 {[%emt 0:13:16]} Rb8 {[%emt 0:09:26][%cal Ba8b8,Bb8b6,Bb6d6][%mdl 32]} 24. Qe3 {[%emt 0:01:10] Repels Be1+} Bd6 {[%emt 0:03:20][%mdl 1024] Black has compensation.} 25. b3 {[%emt 0:00:55]} Qg5 {[%emt 0:01:24]} 26. Rc3 {[%emt 0:06:40]} (26. Qxg5+ hxg5 27. Ba6 Rxb3 28. Rxc6 Bb4 $17) 26... Bb4 {[%emt 0:02:20]} 27. Rc2 {[%emt 0:01:38]} Rb6 {[%emt 0:03:31]} 28. Be2 {[%emt 0:01:02]} Qxe3+ {[%emt 0:06:57]} 29. Kxe3 {[%emt 0:00:06]} c5 {[%emt 0:02:13]} (29... f5 $15) 30. d5 {[%emt 0:01:36]} e5 {[%emt 0:00:36]} (30... exd5 $11 31. Rxd5 Rb7) 31. Bb5 $16 {[%emt 0:00:54]} Rd6 {[%emt 0:00:21]} 32. Bxd7 (32. f4 $16) 32... Rxd7 $14 {[%emt 0:00:01]} 33. g4 {[%emt 0:01:29]} f6 {[%emt 0:01:51]} 34. Rdc1 {[%emt 0:01:17]} Rb7 {[%emt 0:09:50]} 35. Rd1 {[%emt 0:01:23]} Bg6 {[%emt 0:00:54]} 36. Kf2 {[%emt 0:01:21]} Kf8 {[%emt 0:02:41]} 37. Ke3 {[%emt 0:00:35]} Ke7 {[%emt 0:00:47]} 38. h4 {[%emt 0:00:07]} Ba3 {[%emt 0:01:14][%cal Og6e8]} 39. Rd3 {[%emt 0:00:36]} Kd6 {[%emt 0:00:38]} 40. Kd2 {[%emt 0:01:04]} ({White should try} 40. h5 $11 Be8 41. Kd2) 40... h5 {[%emt 0:02:18]} 41. Ke3 $1 {[%emt 0:31:34]} Rh7 {[%emt 0:21:53] and ...hxg4 would now be decisive} 42. Rg2 {[%emt 0:01:22]} hxg4 {[%emt 0:00:53]} 43. Rxg4 {[%emt 0:00:30]} Bc1+ {[%emt 0:00:07]} 44. Ke2 {[%emt 0:01:11]} Bf7 {[%emt 0:00:12][%cal Of6f5]} 45. Rd1 {[%emt 0:02:48]} Bh6 {[%emt 0:03:00]} 46. Rdg1 {[%emt 0:08:16]} Rh8 {[%emt 0:00:10]} 47. Kd3 {[%emt 0:01:29]} Ke7 {[%emt 0:01:00]} 48. Kc4 {[%emt 0:02:43][%cal Og4g2]} Rb8 {[%emt 0:00:47]} 49. Re1 {[%emt 0:02:07]} (49. h5 $1 $15) 49... Kd6 {[%emt 0:02:50]} (49... Rb4+ $17 50. Kc3 (50. Kxc5 $2 Kd7 $19) 50... Rd4) 50. Kc3 {[%emt 0:00:25]} Rb4 {[%emt 0:01:38][%cal Oc5c4]} 51. Reg1 {[%emt 0:00:39]} (51. h5 $11 {remains equal.}) 51... Ke7 {[%emt 0:01:16] Black is more active.} (51... Be3 $17 52. Rg7 Bd4+ 53. Kc2 c4 54. bxc4 Be8 (54... Rxc4+ $2 55. Kd2 $19) (54... Rxa4 55. Rb1 $11)) 52. h5 $1 $11 {[%emt 0:00:55]} Rb8 {[%emt 0:05:31]} (52... Bxh5 $2 {is the wrong capture.} 53. Rh4 c4 (53... Be3 $2 54. Rg7+ Kd6 55. Rxh5 $18) 54. Rxh5 $18) 53. Rh1 {[%emt 0:01:08]} Rb4 {[%emt 0:06:36][%cal Of6f5]} (53... f5 $5 54. Rg2 Rb4 $17) 54. Rh2 {[%emt 0:01:59] [#]} (54. Rhg1 $11) 54... Rd4 {[%emt 0:02:31]} ({Black should play} 54... f5 $1 $17 {[%cal Rf5g4]} 55. Rg6 Bxg6 56. hxg6 Bg7 57. d6+ (57. Rh7 $2 Kf6 $19) 57... Kxd6) 55. Rg1 {[%emt 0:00:38] [#]} f5 $1 {[%emt 0:00:46]} 56. Rg6 $2 {[%emt 0:00:20][%mdl 8192] This move loses the game for White.} (56. Re2 Bxh5) 56... Bxg6 $19 {[%emt 0:01:04]} 57. hxg6 {[%emt 0:00:02]} Bg7 {[%emt 0:00:11]} 58. exf5 {[%emt 0:00:31]} Kf6 {[%emt 0:00:37]} 59. Rh7 {[%emt 0:00:38]} Rf4 {[%emt 0:00:13]} 60. Rh3 {[%emt 0:00:30]} Kxf5 {[%emt 0:00:17] Weighted Error Value: White=0.34/Black=0.19 (very precise)   Loses game:     	White=1     	---        Mistake:       	White=6     	Black=5      Inaccurate:     	White=7     	Black=8      OK:         	White=10    	Black=17     Best:        	White=2     	Black=3      Strong:       	White=2     	---} 0-1

[Event "4NCL Div 1 2024-25"]
[Site "England"]
[Date "2025.01.25"]
[Round "3.6"]
[White "Jackson, James P"]
[Black "McKay, Roderick M"]
[Result "1-0"]
[Annotator "TA"]
[ECO "A21"]
[WhiteElo "2373"]
[BlackElo "2177"]
[PlyCount "49"]
[EventDate "2024.11.23"]
[EventType "team-tourn"]
[EventCountry "ENG"]
[SourceTitle "playchess.com"]
[Source "ChessBase"]
[SourceQuality "1"]
[TimeControl "40/6000+30:3000+30"]

{[%evp 9,49,27,25,27,31,2,4,22,4,17,26,14,20,10,14,17,40,-94,-13,-23,-23,-11,0,0,0,0,0,0,30,34,27,34,80,80,214,-57,-56,-278,764,478,478,485]} 1. c4 {[%emt 0:10:06]} d6 {[%emt 0:10:35]} 2. Nc3 {[%emt 0:00:23]} e5 {[%emt 0:00:33][%cal Be7e5,Be5e4][%mdl 32]} 3. Nf3 {[%emt 0:00:42]} f5 {[%emt 0:00:25][%cal Bf7f5,Bf5f4][%mdl 32]} 4. d4 {[%emt 0:01:07]} e4 {[%emt 0:00:08]} 5. Ng1 {[%emt 0:00:16]} Nf6 {[%emt 0:01:43]} 6. Bf4 {[%emt 0:02:01] A21: English Opening: 1...e5 2 Nc3.} Nh5 $146 {[%emt 0:02:53]} (6... Be7 7. e3 O-O 8. Bg3 c6 9. h4 Na6 10. Nh3 Nc7 11. Be2 a6 12. Qb3 Qe8 13. Nf4 {½-½ Hess,M (2385)-Mons,L (2509) GER-ch Rapid 49th 2023 (4)}) 7. Bg3 {[%emt 0:22:20]} f4 {[%emt 0:08:18] [#] Hoping for ...e3.} 8. e3 $1 {[%emt 0:00:06] The position is equal.} fxg3 {[%emt 0:02:10]} 9. Qxh5+ {[%emt 0:00:07]} g6 {[%emt 0:00:06]} 10. Qe2 {[%emt 0:02:54]} gxf2+ {[%emt 0:00:36]} 11. Qxf2 {[%emt 0:00:25]} Bh6 {[%emt 0:03:06]} 12. h4 {[%emt 0:07:51][%cal Oh4h5]} (12. Nxe4 Bf5 13. Ng3 O-O $14) 12... Nc6 {[%emt 0:04:40]} 13. Nxe4 {[%emt 0:13:09]} (13. O-O-O $14 {keeps the upper hand.}) 13... Rf8 {[%emt 0:02:56]} (13... Bf5 $17 14. Ng5 O-O) 14. Qd2 $1 $11 {[%emt 0:10:36]} Bf5 {[%emt 0:22:53] Black sacrificed a pawn} 15. Ng5 {[%emt 0:03:00]} Bxg5 {[%emt 0:08:16]} 16. hxg5 {[%emt 0:00:06]} Qxg5 {[%emt 0:00:28]} 17. O-O-O {[%emt 0:06:39]} Bg4 {[%emt 0:03:19]} 18. Re1 {[%emt 0:00:52]} O-O-O {[%emt 0:00:51]} 19. Rxh7 {[%emt 0:02:28]} Rde8 {[%emt 0:05:22]} 20. Nh3 {[%emt 0:01:59]} Qf6 {[%emt 0:01:57]} (20... Bxh3 $14 21. Rxh3 Rf6) 21. Nf4 $16 {[%emt 0:02:46] Black must now prevent Nd5.} Nxd4 {[%emt 0:06:54] [#]} 22. Qa5 $2 {[%emt 0:05:38]} (22. Nd5 $1 $18 {[%cal Rd5f6]} Qxf1 23. Rxc7+ Kb8 24. Qb4 (24. Nf4 $2 Rxf4 25. b3 Qf2 $19)) 22... Rf7 $15 {[%emt 0:02:12]} 23. Nd5 $2 {[%emt 0:01:05]} ({Better is} 23. Rxf7 $15 Qxf7 24. Qc3 (24. Qxa7 $2 Nc6 $19)) 23... Qxf1 $4 {[%emt 0:02:44][%mdl 8192]} (23... Qf2 $19 24. Qd2 Qxd2+ 25. Kxd2 Rxh7 26. exd4 Rxe1 27. Kxe1 Bf5) 24. Qxc7+ {[%emt 0:06:38]} (24. Nxc7 $2 Qxc4+ (24... Rxe3 25. Rh8+ Kd7 26. Rxf1 $11) 25. Qc3 Ne2+ (25... Qxc7 $2 26. Rxf7 Ne2+ 27. Rxe2 $19) (25... Rxc7 $2 26. Rxc7+ Qxc7 27. Qxc7+ Kxc7 28. Kd2 $19) 26. Rxe2 Qxe2 $19 (26... Qxc3+ $2 27. bxc3 Rxh7 28. Nxe8 $19)) 24... Rxc7 {[%emt 0:00:16]} 25. Rxc7+ {[%emt 0:00:04] Weighted Error Value: White=0.82/Black=0.48  Loses game:     	White=1     	---        Missed win:     	White=1     	Black=1      Mistake:       	White=1     	Black=3      Inaccurate:     	White=2     	Black=1      OK:         	White=6     	Black=5      Best:        	White=1     	Black=2      Strong:       	White=2     	---} (25. Rxf1 $2 {is the wrong capture.} Ne2+ (25... Rxh7 $2 26. exd4 Rh2 27. Kd2 $19) (25... Rxc4+ $2 26. Nc3 $19) 26. Kb1 Rxh7 $19) 1-0